bitfinex/quotes_ETHUSD_20240718
["timestamp","ask_amount","ask_price","bid_price","bid_amount"]
[1721323246312,2.92566,3418.1,3417.3,2.4609]
[1721323246517,2.92573,3418.0,3417.3,2.4609]
[1721323247287,2.9256,3418.1,3417.3,5.38712]
[1721323247686,2.9256,3418.1,3417.4,2.92619]
[1721323247871,2.9256,3418.1,3417.5,3.0215893]
[1721323248519,5.85127,3418.1,3417.5,3.0215893]
[1721323248673,2.9256,3418.1,3417.5,3.0215893]
[1721323248875,2.9256,3418.1,3417.5,2.3536]
[1721323249608,5.85127,3418.1,3417.5,2.3536]
[1721323249812,2.9256,3418.1,3417.5,2.3536]
[1721323250371,2.92547,3418.3,3417.5,2.3536]
[1721323250615,2.92547,3418.3,3416.8,0.2931]
[1721323250616,2.92512,3418.7,3417.7,2.3727]
[1721323250804,2.92512,3418.7,3417.8,0.09859335]
[1721323250978,2.92512,3418.7,3417.9,2.3727]
[1721323251792,2.92495,3418.9,3418.0,2.92562]
[1721323252025,2.92495,3418.9,3418.2,2.2621]
[1721323252199,2.92495,3418.9,3418.3,0.09823438]
[1721323252386,5.84993,3418.9,3418.3,0.09823438]
[1721323252613,2.92495,3418.9,3418.3,0.09823438]
[1721323253199,2.92501,3418.8,3418.3,0.09823438]
[1721323253401,2.92501,3418.8,3418.2,2.2621]
[1721323253629,2.92501,3418.8,3418.3,0.09823353]
[1721323253793,2.92501,3418.8,3418.2,2.2621]
[1721323254123,2.92501,3418.8,3418.3,0.09768856]
[1721323254628,2.92484,3419.0,3418.4,0.09762549]
[1721323254805,2.92484,3419.0,3418.2,2.2621]
[1721323255001,2.92484,3419.0,3418.3,0.09768856]
[1721323255351,2.92494,3418.9,3418.3,0.09768856]
[1721323255998,2.92501,3418.8,3418.3,0.09768856]
[1721323256205,2.92501,3418.8,3418.2,2.2621]
[1721323256434,5.84975,3419.0,3418.3,0.09762544]
[1721323256600,2.92484,3419.0,3418.3,0.09762544]
[1721323256794,5.84974,3419.0,3418.3,0.09762544]
[1721323257126,2.92492,3418.9,3418.3,0.09762544]
[1721323257615,2.92479,3419.1,3418.3,0.09762544]
[1721323257793,0.14884635,3419.0,3418.3,0.52852554]
[1721323257994,2.92479,3419.1,3418.4,0.0975581]
[1721323258197,0.14884583,3419.0,3418.4,0.0975581]
[1721323258436,2.9247,3419.2,3418.5,2.3052]
[1721323258591,2.9247,3419.2,3418.6,0.09743792]
[1721323258792,2.92432,3419.6,3418.7,2.3052]
[1721323258987,2.92416,3419.8,3419.1,2.4953]
[1721323259459,6.140074,3420.2,3419.2,3.02168143]
[1721323259615,6.140074,3420.2,3419.4,2.92448]
[1721323259616,0.14880785,3420.1,3419.4,2.92448]
[1721323259812,2.92373,3420.3,3419.5,0.09677739]
[1721323260031,3.07260606,3420.2,3419.5,0.09677739]
[1721323260246,3.07269396,3420.1,3419.5,0.09677739]
[1721323260394,2.9239,3420.1,3419.3,2.92457]
[1721323260599,2.92381,3420.2,3419.4,0.0967901]
[1721323260896,0.14879445,3420.1,3419.4,0.0967901]
[1721323261127,3.508557,3420.2,3419.4,0.0967901]
[1721323261328,0.1487945,3420.1,3419.4,0.0967901]
[1721323261539,0.14879931,3420.0,3419.4,0.0967901]
[1721323261705,3.508557,3420.2,3419.4,0.0967901]
[1721323261909,0.1487983,3420.1,3419.4,0.0967901]
[1721323262141,3.508557,3420.2,3419.4,0.0967901]
[1721323262300,0.14879508,3420.1,3419.4,0.0967901]
[1721323262643,3.508557,3420.2,3419.4,0.0967901]
[1721323262806,0.6432227,3420.1,3419.4,0.0967901]
[1721323262994,2.92406,3419.9,3419.1,5.42003]
[1721323263200,2.92388,3420.2,3419.3,2.9245]
[1721323263402,2.92388,3420.2,3419.4,0.0966595]
[1721323264607,2.92372,3420.3,3419.5,2.4678]
[1721323264936,2.92352,3420.6,3419.6,0.09646847]
[1721323265155,2.92315,3421.0,3420.1,2.92383]
[1721323265316,0.14876469,3420.9,3420.2,2.4678]
[1721323265503,0.14876469,3420.9,3420.2,2.56387926]
[1721323265703,2.92315,3421.0,3420.2,5.48762926]
[1721323265906,2.92295,3421.2,3420.2,5.48761926]
[1721323266134,0.2,3421.5,3420.3,2.92371]
[1721323266135,3.215395,3421.1,3420.3,2.92371]
[1721323266637,3.215395,3421.1,3420.4,0.09586193]
[1721323266801,0.292295,3421.1,3420.4,0.09586193]
[1721323267006,3.215385,3421.1,3420.2,5.39154]
[1721323267244,3.215385,3421.1,3420.3,0.0958328]
[1721323267879,2.92335,3420.8,3420.3,0.0958328]
[1721323268155,0.6138265,3421.0,3420.3,0.0958328]
[1721323268156,2.92338,3420.7,3420.3,0.0958328]
[1721323268942,2.9233,3420.8,3420.3,0.0958328]
[1721323269149,3.5370065,3421.0,3420.3,0.0958328]
[1721323269309,2.9232,3420.9,3420.3,0.0958328]
[1721323269511,2.92336,3420.8,3420.3,0.0958328]
[1721323269714,2.9232,3420.9,3420.3,0.0958328]
[1721323270444,2.92296,3421.2,3420.3,3.0195228]
[1721323270649,3.0,3421.1,3420.4,2.277]
[1721323270819,3.0,3421.1,3420.5,0.09569401]
[1721323271018,5.92304,3421.1,3420.5,0.09569401]
[1721323271347,2.92314,3421.0,3420.5,0.09569401]
[1721323271544,3.8846,3421.1,3420.5,0.09569401]
[1721323271841,6.80768,3421.1,3420.5,0.09569401]
[1721323272832,3.8846,3421.1,3420.5,0.09569401]
[1721323273032,2.92339,3420.7,3420.5,0.09569401]
[1721323273516,2.92346,3420.6,3420.5,0.09569401]
[1721323273721,2.92339,3420.7,3420.5,0.09569401]
[1721323273925,2.92339,3420.7,3419.9,2.4212]
[1721323274144,2.92339,3420.7,3420.6,0.0956242]
[1721323274342,3.508051,3420.7,3419.9,5.34523]
[1721323274547,2.92322,3420.9,3420.1,2.4212]
[1721323274932,2.92322,3420.9,3420.2,0.09588728]
[1721323275360,2.92329,3420.8,3420.2,0.09588728]
[1721323275534,2.92317,3421.0,3420.2,0.09588728]
[1721323275737,3.0,3421.1,3420.3,2.4212]
[1721323275934,2.92313,3421.0,3420.3,2.4212]
[1721323276247,2.92313,3421.0,3420.4,0.09575957]
[1721323278241,2.92322,3420.9,3420.4,0.09575957]
[1721323278444,2.92343,3420.7,3420.4,0.09575957]
[1721323278661,5.84688,3420.7,3420.4,0.09575957]
[1721323278830,2.92354,3420.5,3420.4,0.09575957]
[1721323279134,2.92354,3420.5,3419.9,2.256]
[1721323279549,2.92354,3420.5,3420.0,0.09596726]
[1721323279937,2.92354,3420.5,3419.9,2.256]
[1721323280151,2.92354,3420.5,3420.1,0.09590425]
[1721323280329,2.92344,3420.7,3420.0,0.09599794]
[1721323280534,2.92344,3420.7,3420.3,2.2711]
[1721323280764,2.92314,3421.0,3420.3,2.2711]
[1721323280932,2.92314,3421.0,3420.4,0.09574505]
[1721323281658,2.92323,3420.9,3420.4,0.09574505]
[1721323282075,2.9231,3421.1,3420.4,0.09574505]
[1721323282373,2.92312,3421.0,3420.4,0.09574505]
[1721323282953,2.92321,3420.9,3420.4,0.09574505]
[1721323284544,2.92308,3421.1,3420.4,0.09574505]
[1721323284955,2.92314,3421.0,3420.4,0.62480956]
[1721323286458,2.92321,3420.9,3420.4,0.09574505]
[1721323286667,2.92299,3421.2,3420.4,0.09574505]
[1721323286868,2.92313,3421.0,3420.4,0.09574505]
[1721323288683,2.92299,3421.2,3420.4,0.09574505]
[1721323288848,2.92304,3421.1,3420.4,0.09574505]
[1721323289206,2.92282,3421.4,3420.6,2.2896]
[1721323289559,2.92282,3421.4,3420.7,0.09554158]
[1721323289756,2.92286,3421.3,3420.7,0.09554158]
[1721323290482,0.2,3421.5,3420.7,0.15400804]
[1721323290700,0.2,3421.5,3420.8,2.4176]
[1721323290862,0.2,3421.5,3421.1,2.923]
[1721323291058,0.2,3421.5,3421.2,2.5128088]
[1721323291606,0.2,3421.5,3421.2,5.4357388]
[1721323292510,0.2,3421.5,3421.2,2.5128088]
[1721323292812,0.2,3421.5,3421.3,2.9228]
[1721323293101,0.2,3421.5,3421.4,5.97252375]
[1721323293412,0.2,3421.5,3421.4,3.04974375]
[1721323294268,0.2,3421.5,3421.4,2.50618287]
[1721323296585,0.2,3421.5,3421.4,5.42896287]
[1721323299286,0.2,3421.5,3421.4,2.50618287]
[1721323299469,0.2,3421.5,3421.4,0.09508287]
[1721323299665,0.2,3421.5,3421.1,2.4437]
[1721323299917,0.2,3421.5,3421.2,0.0952088]
[1721323300775,3.12271,3421.5,3421.2,0.0952088]
[1721323301208,5.84572,3421.3,3421.2,0.0952088]
[1721323301870,2.92286,3421.3,3420.7,2.4437]
[1721323302074,2.92298,3421.2,3420.8,0.09538489]
[1721323302318,2.92298,3421.2,3420.7,2.4437]
[1721323302319,2.92303,3421.1,3420.7,2.4437]
[1721323302615,2.92303,3421.1,3420.8,0.09530735]
[1721323302776,2.92303,3421.1,3420.7,2.4437]
[1721323302968,2.9229,3421.3,3420.7,2.68807]
[1721323303177,6.04547,3421.5,3420.8,0.09530735]
[1721323303475,3.1227,3421.5,3420.8,0.09530735]
[1721323304010,2.92278,3421.4,3420.8,0.09530735]
[1721323304901,2.92288,3421.3,3420.8,0.09530735]
[1721323305219,2.92296,3421.2,3420.7,2.4437]
[1721323305463,2.92296,3421.2,3420.8,0.09534058]
[1721323305930,2.92296,3421.2,3420.7,2.4437]
[1721323305931,2.92313,3421.0,3420.9,0.09527759]
[1721323306434,5.84615,3421.1,3420.9,0.09527248]
[1721323306715,5.84615,3421.1,3420.3,2.4762]
[1721323306716,2.92312,3421.0,3420.3,2.4762]
[1721323306920,2.9232,3420.9,3420.3,3.308592]
[1721323307133,2.9232,3420.9,3420.4,0.09558744]
[1721323307339,2.92304,3421.1,3420.4,0.09558744]
[1721323307340,2.92354,3420.5,3420.4,0.09558744]
[1721323307621,0.292354,3420.5,3420.0,2.4539]
[1721323307800,2.92337,3420.7,3420.0,2.4539]
[1721323308010,5.84682,3420.7,3420.1,0.09578413]
[1721323308211,2.92347,3420.6,3420.1,0.09578413]
[1721323309600,2.92355,3420.5,3420.1,0.09578413]
[1721323311437,2.92375,3420.3,3420.1,0.09578413]
[1721323311610,5.84716,3420.5,3420.1,0.09578413]
[1721323311803,2.92355,3420.5,3420.1,0.09578413]
[1721323312210,2.92363,3420.4,3420.1,0.09578413]
[1721323313110,2.92372,3420.3,3420.1,0.09578413]
[1721323314014,2.9238,3420.2,3420.1,0.09578413]
[1721323314752,2.9237,3420.4,3420.1,0.09578413]
[1721323315831,2.92374,3420.3,3420.1,0.09578413]
[1721323316151,2.9238,3420.2,3420.1,0.09578413]
[1721323316855,2.9239,3420.1,3419.6,2.2778]
[1721323317155,2.92374,3420.3,3419.7,0.09610577]
[1721323317368,2.92322,3420.9,3419.9,2.2778]
[1721323317657,2.92322,3420.9,3420.1,2.3113]
[1721323317959,2.92342,3420.7,3420.2,0.0957565]
[1721323318657,2.92322,3420.9,3420.2,0.0957565]
[1721323318815,2.92334,3420.8,3420.3,0.53310065]
[1721323319156,2.92337,3420.7,3420.4,0.09561162]
[1721323319357,2.92354,3420.5,3420.4,0.09561162]
[1721323319756,2.92354,3420.5,3420.1,2.3113]
[1721323320055,2.92354,3420.5,3420.2,0.09570184]
[1721323320856,2.92358,3420.5,3420.2,0.09570184]
[1721323321860,2.92368,3420.4,3420.2,0.09570184]
[1721323322317,2.92372,3420.3,3420.2,0.09570184]
[1721323322754,2.92372,3420.3,3419.8,2.257]
[1721323323054,2.92358,3420.5,3419.8,2.5347235]
[1721323323240,2.9233,3420.8,3419.9,0.09590622]
[1721323323459,2.92397,3420.0,3419.8,2.257]
[1721323323767,2.92384,3420.2,3419.9,0.09590622]
[1721323324132,2.92384,3420.2,3419.8,2.257]
[1721323324652,2.92397,3420.0,3419.9,0.09263579]
[1721323324850,2.92407,3419.9,3419.4,2.257]
[1721323325027,2.92407,3419.9,3419.5,0.0928879]
[1721323325947,2.92376,3420.3,3419.5,0.62034269]
[1721323326259,2.92388,3420.2,3419.6,2.4144]
[1721323326464,2.92388,3420.2,3419.7,0.0927301]
[1721323326780,2.92358,3420.5,3419.7,0.68863159]
[1721323326973,2.92358,3420.5,3419.8,2.2799]
[1721323327326,2.92358,3420.5,3419.9,0.09262536]
[1721323327519,2.92341,3420.7,3419.9,3.01662536]
[1721323327829,2.92341,3420.7,3419.9,0.09262536]
[1721323328061,2.92341,3420.7,3420.0,0.58924969]
[1721323328395,2.92346,3420.6,3420.1,0.09239688]
[1721323328562,2.92334,3420.8,3420.1,0.09239688]
[1721323328762,2.92339,3420.7,3420.1,0.09239688]
[1721323329146,2.92347,3420.6,3420.1,0.09239688]
[1721323329346,2.92325,3420.9,3420.1,0.09239688]
[1721323329553,2.92325,3420.9,3420.1,0.68095654]
[1721323330289,2.92339,3420.7,3420.1,0.68095654]
[1721323332426,2.92346,3420.6,3420.1,0.09239688]
[1721323332778,2.92339,3420.7,3420.0,2.92397]
[1721323332979,2.92339,3420.7,3420.2,0.09224761]
[1721323333184,2.92356,3420.5,3420.1,0.09231062]
[1721323333606,2.92356,3420.5,3419.8,5.20402]
[1721323333792,2.92356,3420.5,3420.2,0.09217411]
[1721323334145,5.84684,3420.7,3420.3,0.0921111]
[1721323334438,2.92363,3420.4,3420.3,0.0921111]
[1721323334593,2.92363,3420.4,3419.8,2.2799]
[1721323334795,2.92363,3420.4,3420.3,0.09209065]
[1721323335143,2.92374,3420.3,3419.8,2.2799]
[1721323336125,2.92386,3420.2,3419.8,2.2799]
[1721323337892,2.92373,3420.3,3419.8,2.2799]
[1721323338111,2.92359,3420.5,3419.8,2.2799]
[1721323338455,2.92342,3420.7,3419.8,2.87838]
[1721323338607,2.92348,3420.6,3419.8,2.87838]
[1721323338810,2.92333,3420.8,3419.9,2.92401]
[1721323339047,2.92333,3420.8,3420.0,2.92394]
[1721323339554,0.2,3420.9,3420.1,2.92385]
[1721323339842,0.2,3420.9,3420.3,2.92371]
[1721323340010,0.2,3420.9,3420.4,3.508336]
[1721323340409,0.2,3420.9,3420.5,2.92354]
[1721323340811,0.2,3420.9,3420.8,2.92329]
[1721323341022,0.2,3420.9,3420.8,8.35658]
[1721323341419,0.2,3420.9,3420.8,10.76838]
[1721323341627,0.2,3420.9,3420.8,11.845218]
[1721323345147,0.2,3420.9,3420.8,11.93671541]
[1721323346493,0.2,3420.9,3420.8,14.86000541]
[1721323347245,0.2,3420.9,3420.8,11.93671541]
[1721323349864,0.2,3420.9,3420.8,9.42671541]
[1721323352077,0.2,3420.9,3420.8,7.01491541]
[1721323352285,0.2,3420.9,3420.8,3.01478741]
[1721323353437,0.2,3420.9,3420.8,5.93807741]
[1721323366542,0.2,3420.9,3420.8,11.37136741]
[1721323366738,0.2,3420.9,3420.8,13.76246741]
[1721323368043,0.2,3420.9,3420.8,16.76246741]
[1721323368285,0.2,3420.9,3420.8,19.28105715]
[1721323374327,2.4105,3422.7,3421.9,2.92228]
[1721323374690,2.4105,3422.7,3422.0,2.92225]
[1721323375018,2.4105,3422.7,3422.1,0.55732947]
[1721323375216,2.4105,3422.7,3422.0,3.01157097]
[1721323375401,2.4105,3422.7,3422.2,0.08919509]
[1721323375598,2.4105,3422.7,3422.1,0.08925803]
[1721323375804,2.4105,3422.7,3422.3,0.08913216]
[1721323376000,2.4105,3422.7,3422.2,0.08919509]
[1721323376191,2.4105,3422.7,3422.4,0.08906923]
[1721323376396,2.4105,3422.7,3422.3,0.08913216]
[1721323376595,2.4105,3422.7,3422.5,0.0889416]
[1721323376896,2.4105,3422.7,3422.4,0.08900453]
[1721323377116,2.4105,3422.7,3422.5,0.0889416]
[1721323377436,2.4105,3422.7,3422.2,2.92204]
[1721323377611,2.4105,3422.7,3422.6,0.08887868]
[1721323378129,2.4105,3422.7,3422.6,0.08884122]
[1721323378523,2.4105,3422.7,3422.2,2.92204]
[1721323378927,2.3126,3423.0,3422.3,2.92194]
[1721323379154,2.3126,3423.0,3422.5,2.92179]
[1721323379430,2.3126,3423.0,3422.6,0.08882335]
[1721323381593,2.92159,3422.8,3422.6,0.08882335]
[1721323381795,2.92159,3422.8,3421.6,2.4506]
[1721323382021,2.92159,3422.8,3422.1,2.92216]
[1721323382542,5.23406,3423.0,3422.2,3.00802139]
[1721323382707,5.23406,3423.0,3422.3,2.922]
[1721323383202,2.3126,3423.0,3422.4,0.08586553]
[1721323383826,5.23403,3423.0,3422.4,0.08586553]
[1721323384025,0.815527,3422.9,3422.4,0.08586553]
[1721323384210,0.815527,3422.9,3422.2,5.84411]
[1721323384416,0.815527,3422.9,3422.2,2.92203]
[1721323384760,0.815527,3422.9,3422.3,0.08592846]
[1721323385319,2.3126,3423.0,3422.3,0.08592846]
[1721323385633,2.3126,3423.0,3422.4,2.9219]
[1721323385837,2.3126,3423.0,3422.4,3.00776553]
[1721323386955,2.3126,3423.0,3422.5,2.92182]
[1721323387128,2.4755,3423.3,3422.6,2.92174]
[1721323387320,5.39667,3423.3,3422.6,3.00747968]
[1721323387646,1.581765,3423.2,3422.6,3.00747968]
[1721323389478,2.4755,3423.3,3422.6,3.00747968]
[1721323389630,5.39666,3423.3,3422.6,3.00747968]
[1721323390372,5.39666,3423.3,3422.6,0.08573968]
[1721323391879,5.39666,3423.3,3422.7,0.0856742]
[1721323392039,5.39666,3423.3,3422.4,2.92191]
[1721323392355,2.92133,3423.1,3422.8,0.08561128]
[1721323392534,2.92133,3423.1,3422.3,2.92198]
[1721323392988,2.92133,3423.1,3422.4,2.92191]
[1721323393288,1.289666,3423.2,3422.4,3.00772296]
[1721323393463,5.39667,3423.3,3422.4,3.00772296]
[1721323393668,2.92125,3423.2,3422.5,2.92179]
[1721323393843,2.92125,3423.2,3422.5,3.00759004]
[1721323395278,2.92125,3423.2,3422.5,0.08580004]
[1721323395481,2.92134,3423.1,3422.3,2.92193]
[1721323395640,2.92134,3423.1,3422.4,2.92191]
[1721323395841,2.92134,3423.1,3422.4,3.00777296]
[1721323399396,0.539667,3423.2,3422.4,5.92956296]
[1721323399623,5.39667,3423.3,3422.4,3.00771296]
[1721323399906,2.4755,3423.3,3422.4,3.00771296]
[1721323400258,2.4755,3423.3,3422.7,1.046]
[1721323400681,2.4755,3423.3,3422.9,1.046]
[1721323400887,2.4738,3423.6,3423.1,1.046]
[1721323401166,5.97452978,3423.6,3423.2,0.08533499]
[1721323401378,2.92098,3423.5,3423.2,0.08533499]
[1721323401575,2.92098,3423.5,3422.9,1.046]
[1721323401974,2.92098,3423.5,3423.0,0.0854608]
[1721323402179,3.81051798,3423.5,3423.0,0.0854608]
[1721323403423,0.88953798,3423.5,3423.0,0.0854608]
[1721323403703,3.05362978,3423.6,3423.0,0.0854608]
[1721323403907,5.97454978,3423.6,3423.0,0.0854608]
[1721323404281,5.39472,3423.6,3423.1,1.046]
[1721323404770,5.39472,3423.6,3423.2,0.08533499]
[1721323405765,2.4738,3423.6,3423.2,0.08533499]
[1721323405961,2.92077,3423.8,3423.2,0.08533499]
[1721323406161,2.92082,3423.7,3423.2,0.08533499]
[1721323406584,3.27575956,3423.7,3423.2,0.08533499]
[1721323406797,3.27575956,3423.7,3422.9,3.96745]
[1721323406962,2.92082,3423.7,3422.9,3.96745]
[1721323407159,2.92099,3423.5,3423.0,0.0854608]
[1721323407366,2.92105,3423.5,3423.0,0.0854608]
[1721323407598,2.92105,3423.5,3422.8,1.046]
[1721323407599,5.8421,3423.5,3422.8,1.046]
[1721323407804,2.92107,3423.4,3423.1,0.08537407]
[1721323408001,2.92105,3423.5,3423.1,0.08537407]
[1721323408164,5.27349,3423.8,3423.0,1.046]
[1721323408165,2.92088,3423.7,3423.0,1.046]
[1721323408598,2.92088,3423.7,3423.1,0.08537407]
[1721323408905,2.92091,3423.6,3423.1,0.08537407]
[1721323409500,5.84188,3423.6,3423.1,0.08537407]
[1721323410212,2.3527,3423.8,3423.2,1.046]
[1721323410698,2.3527,3423.8,3423.3,0.08524402]
[1721323410917,2.3527,3423.8,3423.2,1.046]
[1721323411090,2.3527,3423.8,3423.4,0.08517942]
[1721323411407,2.4882,3424.1,3423.5,0.08511653]
[1721323411567,0.14863132,3424.0,3423.4,1.046]
[1721323411772,0.14863132,3423.9,3423.5,0.08511653]
[1721323411968,2.92065,3423.9,3423.5,0.08511653]
[1721323414291,2.92077,3423.8,3423.2,1.046]
[1721323414498,2.92077,3423.8,3423.6,0.08499155]
[1721323414707,2.92077,3423.8,3423.2,1.046]
[1721323415202,2.92103,3423.5,3423.3,0.08518022]
[1721323415378,2.92103,3423.5,3422.8,2.3834]
[1721323415379,2.92103,3423.5,3423.0,1.046]
[1721323415578,2.92103,3423.5,3423.1,0.08529495]
[1721323415891,2.92078,3423.8,3423.2,1.046]
[1721323416095,2.92082,3423.7,3423.2,1.046]
[1721323416283,2.92082,3423.7,3423.3,0.08516916]
[1721323416485,2.9209,3423.6,3423.0,1.046]
[1721323416694,2.92098,3423.5,3423.4,0.08510626]
[1721323416903,2.92108,3423.4,3423.0,1.046]
[1721323417416,2.92108,3423.4,3423.1,0.08529495]
[1721323419022,2.92116,3423.3,3422.8,3.4294]
[1721323419223,2.92102,3423.5,3423.2,0.0852329]
[1721323419393,2.92108,3423.4,3422.8,3.4294]
[1721323419600,2.92108,3423.4,3422.9,0.08542162]
[1721323421207,2.92129,3423.2,3422.9,0.08542162]
[1721323421410,2.9212,3423.3,3422.7,1.046]
[1721323421584,2.9212,3423.3,3422.8,0.08548453]
[1721323421784,2.92125,3423.2,3422.7,1.046]
[1721323422093,2.92125,3423.2,3422.8,0.08548453]
[1721323422495,2.92125,3423.2,3422.7,1.046]
[1721323422697,2.92113,3423.4,3422.9,0.08542162]
[1721323422901,2.92113,3423.4,3422.9,1.046]
[1721323423086,2.92113,3423.4,3423.0,0.08535871]
[1721323423279,2.9209,3423.6,3423.1,1.046]
[1721323423696,2.9209,3423.6,3423.2,0.0852329]
[1721323426960,2.92059,3424.0,3423.5,1.046]
[1721323427128,0.14862376,3423.9,3423.5,1.046]
[1721323427328,10.42048,3424.1,3423.5,1.046]
[1721323427544,0.14861644,3424.0,3423.6,0.08498471]
[1721323427748,0.14861644,3423.9,3423.6,0.08498471]
[1721323428050,0.14861644,3423.8,3423.6,0.08498471]
[1721323428268,2.92059,3424.0,3423.6,0.08498471]
[1721323428455,2.92059,3424.0,3423.3,1.046]
[1721323428456,0.14862297,3423.9,3423.3,1.046]
[1721323428635,0.14862297,3423.8,3423.7,0.08492183]
[1721323428950,0.14862297,3423.8,3423.3,2.04622283]
[1721323429168,2.92059,3424.0,3423.7,0.08492183]
[1721323429454,0.14862479,3423.9,3423.8,0.08485895]
[1721323429754,0.14862512,3423.9,3423.8,0.08485895]
[1721323429953,0.14862512,3423.9,3423.4,2.3863]
[1721323430254,3.96624,3424.4,3423.5,2.03860983]
[1721323430255,2.92024,3424.4,3423.5,2.03860983]
[1721323430460,0.14861348,3424.2,3423.5,2.12365743]
[1721323430748,7.5,3424.7,3424.0,3.3391]
[1721323430965,0.14860779,3424.6,3424.1,0.33391]
[1721323431158,5.41069,3424.9,3424.1,0.33391]
[1721323431159,2.91993,3424.8,3424.1,0.08467034]
[1721323431516,0.14858919,3424.7,3424.1,0.08467034]
[1721323431758,2.91996,3424.7,3424.1,0.08467034]
[1721323432052,3.06864325,3424.6,3424.1,0.08467034]
[1721323432269,2.92005,3424.6,3424.1,0.08467034]
[1721323432785,2.92029,3424.4,3424.1,0.08467034]
[1721323433145,2.92029,3424.4,3423.9,1.046]
[1721323433334,2.92029,3424.4,3424.2,0.08460748]
[1721323433533,2.92029,3424.4,3423.9,1.046]
[1721323433733,2.92029,3424.4,3424.3,0.08454462]
[1721323433936,2.92029,3424.4,3423.9,1.046]
[1721323434134,2.92029,3424.4,3424.3,0.08454462]
[1721323434373,2.92029,3424.4,3423.9,1.046]
[1721323434629,2.92031,3424.3,3423.7,3.3391]
[1721323434865,2.92031,3424.3,3424.0,0.08473321]
[1721323435076,2.92031,3424.3,3423.7,3.3391]
[1721323435371,2.92031,3424.3,3424.1,0.08467034]
[1721323435583,2.92014,3424.5,3423.7,3.3391]
[1721323435870,2.92014,3424.5,3423.8,0.625999]
[1721323436072,2.92027,3424.4,3423.8,0.71085795]
[1721323438540,2.92005,3424.6,3423.8,3.63156795]
[1721323438744,2.92005,3424.6,3423.9,1.046]
[1721323439079,2.92005,3424.6,3424.0,0.08465244]
[1721323439478,2.92014,3424.5,3424.0,0.08465244]
[1721323441157,5.84035,3424.5,3424.0,0.08465244]
[1721323441358,2.92045,3424.2,3424.0,0.08465244]
[1721323441748,2.92045,3424.2,3423.7,2.2931]
[1721323441948,2.92045,3424.2,3424.1,0.08452834]
[1721323442177,2.92045,3424.2,3423.7,2.2931]
[1721323442360,2.92045,3424.2,3424.1,0.08452834]
[1721323442562,2.92045,3424.2,3423.7,2.2931]
[1721323442743,2.92045,3424.2,3424.1,0.08452834]
[1721323442943,2.92045,3424.2,3423.7,2.2931]
[1721323443170,2.92045,3424.2,3424.1,0.08452834]
[1721323443171,7.470961,3424.2,3424.1,0.08452834]
[1721323443368,2.92082,3423.7,3423.4,2.3988]
[1721323443592,2.92051,3424.1,3423.5,1.046]
[1721323443887,2.3295,3424.3,3423.5,1.046]
[1721323443888,2.92061,3424.0,3423.5,3.5297056]
[1721323444185,2.3295,3424.6,3423.7,1.046]
[1721323444480,0.14860954,3424.5,3423.8,0.72977751]
[1721323444667,2.92035,3424.3,3423.8,0.08471695]
[1721323444873,2.3295,3424.4,3423.8,0.08471695]
[1721323445045,2.92075,3423.8,3423.3,3.4448]
[1721323445243,3.3755,3423.7,3422.8,2.3988]
[1721323445491,2.92119,3423.3,3422.8,2.3988]
[1721323446602,2.92104,3423.5,3422.8,2.3988]
[1721323446890,2.92108,3423.4,3422.9,1.046]
[1721323447087,2.92116,3423.3,3422.9,1.046]
[1721323447272,2.92125,3423.2,3422.8,2.3988]
[1721323447478,2.92125,3423.2,3422.5,3.96783]
[1721323447479,2.92138,3423.1,3422.5,3.48]
[1721323447683,2.92163,3422.8,3422.0,5.19286]
[1721323447880,2.92163,3422.8,3422.0,2.2706]
[1721323448209,2.92163,3422.8,3422.1,1.046]
[1721323449051,2.92163,3422.8,3422.1,3.96817]
[1721323449391,2.92142,3423.0,3422.3,1.046]
[1721323449597,2.9215,3422.9,3422.3,1.046]
[1721323449776,2.92142,3423.0,3422.1,1.046]
[1721323449777,2.92161,3422.8,3422.1,1.046]
[1721323449956,2.92161,3422.8,3422.1,1.699204]
[1721323450293,2.92161,3422.8,3422.2,0.08582972]
[1721323454495,2.92167,3422.7,3422.2,0.08582972]
[1721323455109,2.92167,3422.7,3422.0,2.2706]
[1721323455290,2.92178,3422.6,3422.3,0.08576679]
[1721323455488,2.92192,3422.4,3421.7,2.4982]
[1721323455720,2.92203,3422.3,3421.7,2.4982]
[1721323455887,2.92203,3422.3,3421.8,0.08617763]
[1721323456276,2.92203,3422.3,3421.7,2.4982]
[1721323456478,2.92203,3422.3,3421.9,0.08611468]
[1721323456782,2.92203,3422.3,3422.0,0.08607386]
[1721323456984,2.92203,3422.3,3421.7,3.5442]
[1721323457215,2.92203,3422.3,3421.8,0.08619975]
[1721323457390,2.92203,3422.3,3421.7,4.19088]
[1721323457595,2.92203,3422.3,3421.8,0.08619975]
[1721323457811,2.92203,3422.3,3421.7,4.19088]
[1721323458014,2.92184,3422.5,3421.8,0.08619975]
[1721323458216,2.92154,3422.9,3422.1,1.046]
[1721323458582,2.92154,3422.9,3422.2,0.08603566]
[1721323458782,2.92172,3422.7,3422.2,0.08603566]
[1721323459209,2.92184,3422.5,3422.3,0.08597698]
[1721323459526,2.92184,3422.5,3422.0,2.4951]
[1721323459694,2.92184,3422.5,3422.4,0.08591405]
[1721323460017,2.92202,3422.3,3421.6,3.5205]
[1721323460515,2.9221,3422.2,3421.7,0.08634527]
[1721323460821,2.922,3422.4,3421.7,0.08634527]
[1721323461040,2.92201,3422.3,3421.7,0.08634527]
[1721323462014,2.92187,3422.5,3421.8,1.046]
[1721323462192,2.92171,3422.7,3421.9,5.43092044]
[1721323462400,2.92171,3422.7,3422.0,1.046]
[1721323462596,5.84345,3422.7,3422.0,1.046]
[1721323462919,2.92177,3422.6,3422.1,0.08609945]
[1721323465314,2.92171,3422.7,3422.1,0.08609945]
[1721323465722,2.92153,3422.9,3422.2,6.31258]